bitfinex-derivatives/quotes_SOLF0:USTF0_20230404
["timestamp","ask_amount","ask_price","bid_price","bid_amount"]
[1680624075287,23.91,20.826,20.819,8.81968492]
[1680624075488,23.91,20.826,20.816,10.0]
[1680624075684,23.91,20.826,20.818,10.0]
[1680624075886,23.91,20.826,20.819,8.81951078]
[1680624076588,23.91,20.826,20.816,10.0]
[1680624076887,23.91,20.826,20.817,8.81940607]
[1680624077189,23.91,20.826,20.818,10.0]
[1680624077490,23.91,20.826,20.82,10.0]
[1680624078087,23.91,20.826,20.818,10.0]
[1680624078281,23.91,20.826,20.819,8.8193355]
[1680624078488,23.78,20.828,20.82,10.0]
[1680624079787,23.78,20.828,20.817,23.87]
[1680624079984,23.78,20.828,20.818,8.81925413]
[1680624080183,23.78,20.828,20.819,10.0]
[1680624080489,23.78,20.828,20.82,8.81925413]
[1680624081087,23.78,20.828,20.818,10.0]
[1680624081387,23.78,20.828,20.819,8.81928228]
[1680624081590,23.78,20.828,20.82,10.0]
[1680624082390,23.78,20.828,20.818,10.0]
[1680624082591,23.78,20.828,20.819,8.81927837]
[1680624082793,23.78,20.828,20.82,10.0]
[1680624083388,23.78,20.828,20.818,10.0]
[1680624083589,23.78,20.828,20.82,10.0]
[1680624084489,23.78,20.828,20.818,10.0]
[1680624084683,23.78,20.828,20.819,8.81920535]
[1680624084888,23.78,20.828,20.82,18.81920535]
[1680624085089,23.78,20.828,20.817,23.87]
[1680624085291,23.78,20.828,20.818,8.81919052]
[1680624085590,23.78,20.828,20.819,10.0]
[1680624085786,23.78,20.828,20.82,8.81919052]
[1680624086490,23.78,20.828,20.818,10.0]
[1680624086686,23.78,20.828,20.819,8.81991566]
[1680624086990,23.78,20.828,20.82,10.0]
[1680624087388,23.78,20.828,20.818,10.0]
[1680624087585,23.78,20.828,20.819,8.81973372]
[1680624087990,23.78,20.828,20.82,10.0]
[1680624088998,23.78,20.828,20.821,8.81893564]
[1680624089294,23.78,20.828,20.822,10.0]
[1680624089990,0.06082031,20.829,20.824,100.0]
[1680624090195,46.972,20.835,20.824,100.0]
[1680624090196,0.06677999,20.834,20.825,168.45]
[1680624090496,0.06677999,20.834,20.826,10.0]
[1680624095891,0.06677999,20.834,20.824,123.95]
[1680624096089,0.06677999,20.834,20.825,8.81671131]
[1680624096289,0.06677999,20.834,20.826,10.0]
[1680624097897,0.06677999,20.834,20.825,10.0]
[1680624098391,0.06677999,20.834,20.824,123.95]
[1680624098594,0.06677999,20.834,20.825,8.81664859]
[1680624098797,0.06677999,20.834,20.826,10.0]
[1680624099199,0.06677999,20.834,20.825,10.0]
[1680624099899,0.06677999,20.834,20.824,123.95]
[1680624100101,0.06677999,20.834,20.825,18.81663228]
[1680624100301,0.06677999,20.834,20.826,10.0]
[1680624102006,0.06677999,20.834,20.826,33.95]
[1680624102202,0.06677999,20.834,20.826,23.95]
[1680624105208,23.95,20.833,20.823,100.0]
[1680624105510,23.95,20.833,20.824,18.81674017]
[1680624105710,23.95,20.833,20.825,10.0]
[1680624107715,23.95,20.833,20.824,10.0]
[1680624108715,0.06677999,20.834,20.826,10.0]
[1680624110314,0.06677999,20.834,20.825,23.95]
[1680624112117,0.06677999,20.834,20.826,10.0]
[1680624118823,0.06677999,20.834,20.828,23.87]
[1680624119119,0.06894115,20.838,20.829,10.0]
[1680624120116,0.06894115,20.838,20.828,23.87]
[1680624120321,23.78,20.836,20.825,23.87]
[1680624121819,23.95,20.833,20.824,0.06514398]
[1680624122023,23.95,20.829,20.824,0.06514398]
[1680624122222,23.95,20.829,20.82,10.0]
[1680624122521,23.95,20.829,20.819,45.31594377]
[1680624129922,23.95,20.829,20.819,0.06074377]
[1680624130225,23.78,20.825,20.819,0.06074377]
[1680624130425,23.78,20.825,20.815,10.0640246]
[1680624130624,23.91,20.822,20.815,0.0640246]
[1680624132026,23.78,20.82,20.815,0.0640246]
[1680624132228,23.78,20.82,20.814,14.41176814]
[1680624132431,23.78,20.82,20.813,100.0]
[1680624132822,23.78,20.82,20.814,8.82162181]
[1680624137730,0.06293799,20.825,20.814,8.82162181]
[1680624137731,23.95,20.824,20.814,8.82162181]
[1680624138027,23.95,20.824,20.813,268.45]
[1680624138229,23.95,20.824,20.814,8.82100978]
[1680624138429,23.95,20.824,20.815,10.0]
[1680624140028,23.95,20.824,20.814,10.0]
[1680624140828,23.95,20.824,20.813,23.95]
[1680624141028,23.95,20.824,20.814,18.82124199]
[1680624141228,23.95,20.824,20.815,10.0]
[1680624144335,0.06293799,20.825,20.817,23.95]
[1680624144930,0.06293799,20.825,20.818,10.0]
[1680624145432,23.91,20.832,20.821,23.87]
[1680624145635,244.5,20.852,20.818,10.0]
[1680624145636,23.91,20.835,20.824,23.87]
[1680624145835,23.91,20.835,20.825,10.0]
[1680624146838,0.06964283,20.837,20.828,23.87]
[1680624147232,0.06964283,20.837,20.829,10.0]
[1680624152039,0.06964283,20.837,20.83,23.87]
[1680624152342,0.06964283,20.837,20.831,10.0]
[1680624152640,23.91,20.841,20.831,10.0]
[1680624152641,23.9772514,20.841,20.831,10.0]
[1680624153238,23.9772514,20.841,20.83,23.87]
[1680624158444,23.95,20.838,20.829,0.06644938]
[1680624158639,23.91,20.834,20.829,0.06644938]
[1680624158846,23.91,20.834,20.824,10.07088332]
[1680624160042,23.91,20.834,20.824,14.23569173]
[1680624160245,23.91,20.834,20.824,0.07088332]
[1680624162041,23.95,20.832,20.824,0.07088332]
[1680624164647,0.06246967,20.836,20.824,0.07088332]
[1680624164648,23.91,20.835,20.825,144.5]
[1680624164946,23.91,20.835,20.826,10.0]
[1680624165746,23.91,20.835,20.826,154.5]
[1680624166647,23.91,20.835,20.827,144.5]
[1680624166849,23.91,20.835,20.828,10.0]
[1680624167748,23.91,20.835,20.825,10.0]
[1680624170251,23.91,20.835,20.824,168.44088332]
[1680624171050,23.91,20.835,20.825,10.0]
[1680624172049,0.06246967,20.836,20.826,23.87]
[1680624172254,0.06246967,20.836,20.827,10.0]
[1680624174444,0.06246967,20.836,20.827,154.5]
[1680624176554,0.06246967,20.836,20.826,72.2422]
[1680624176555,0.06246967,20.836,20.826,23.87]
[1680624190766,0.06246967,20.836,20.827,10.0]
[1680624193064,48.2174,20.846,20.827,10.0]
[1680624193266,23.78,20.845,20.834,23.95]
[1680624193467,23.95,20.848,20.837,23.95]
[1680624193762,23.95,20.852,20.841,268.45]
[1680624193963,23.95,20.856,20.844,23.95]
[1680624194164,0.06177519,20.857,20.848,23.87]
[1680624194371,23.91,20.859,20.848,23.87]
[1680624195268,23.91,20.856,20.845,24.01144912]
[1680624195468,23.95,20.853,20.845,0.06144912]
[1680624198271,23.78,20.857,20.846,23.95]
[1680624198471,23.78,20.857,20.847,10.0]
[1680624199069,23.78,20.857,20.846,23.95]
[1680624206178,46.8141,20.859,20.85,23.95]
[1680624206472,46.8141,20.859,20.851,10.0]
[1680624207676,46.8141,20.859,20.852,144.5]
[1680624208077,46.8141,20.859,20.853,10.0]
[1680624208270,0.06338779,20.86,20.853,10.0]
[1680624208670,0.06338779,20.86,20.853,33.95]
[1680624210180,0.06338779,20.86,20.853,23.95]
[1680624211078,23.95,20.865,20.86,0.00904719]
[1680624230092,23.95,20.865,20.855,24.01320224]
[1680624236998,71.4883,20.867,20.855,24.01320224]
[1680624242203,47.5383,20.867,20.858,23.95]
[1680624242602,47.5383,20.867,20.855,0.06320224]
[1680624242603,23.91,20.865,20.855,0.06320224]
[1680624243102,23.78,20.862,20.855,0.06320224]
[1680624252005,23.91,20.864,20.855,0.06320224]
[1680624253102,23.78,20.861,20.855,0.06320224]
[1680624253406,23.78,20.861,20.851,0.06769788]
[1680624253706,23.78,20.861,20.851,10.06769788]
[1680624253907,23.78,20.861,20.851,0.06769788]
[1680624259816,23.91,20.864,20.855,23.87]
[1680624260112,23.91,20.864,20.856,10.0]
[1680624260711,23.91,20.864,20.855,23.87]
[1680624263216,0.06665061,20.866,20.858,23.95]
[1680624267920,0.06665061,20.866,20.853,23.95]
[1680624267921,23.91,20.864,20.853,23.95]
[1680624272123,23.95,20.863,20.852,23.95]
[1680624272323,23.95,20.863,20.853,10.0]
[1680624273024,23.95,20.863,20.852,23.95]
[1680624275825,23.95,20.863,20.852,168.45]
[1680624276225,23.95,20.863,20.853,10.0]
[1680624277926,23.95,20.863,20.852,23.95]
[1680624281327,23.95,20.86,20.851,0.06769788]
[1680624291734,23.78,20.857,20.851,0.06769788]
[1680624291940,23.95,20.854,20.847,0.06109461]
[1680624292242,23.91,20.852,20.847,0.06109461]
[1680624292437,23.91,20.852,20.842,0.0685766]
[1680624293242,45.8431,20.851,20.842,0.0685766]
[1680624294348,23.95,20.849,20.842,0.0685766]
[1680624294644,10.0,20.848,20.842,0.0685766]
[1680624294842,10.0,20.848,20.838,23.93800162]
[1680624295139,23.95,20.849,20.838,23.93800162]
[1680624298643,45.8431,20.851,20.838,0.06800162]
[1680624298644,23.78,20.845,20.838,0.06800162]
[1680624302446,23.78,20.842,20.838,0.06800162]
[1680624302646,0.04023887,20.838,20.835,14.21350939]
[1680624302843,0.04023887,20.838,20.831,23.95]
[1680624303836,0.04023887,20.838,20.831,38.48627937]
[1680624304746,23.85047357,20.842,20.838,0.12706145]
[1680624305047,23.78,20.842,20.838,0.12706145]
[1680624313451,23.95,20.845,20.838,0.12706145]
[1680624315357,0.06675688,20.847,20.838,24.07706145]
[1680624315960,0.06675688,20.847,20.842,23.95]
[1680624316159,0.06171221,20.852,20.842,23.95]
[1680624322466,23.78,20.848,20.838,0.12706145]
[1680624323464,23.78,20.845,20.838,0.12706145]
[1680624326460,23.78,20.841,20.838,0.12706145]
[1680624326666,23.78,20.841,20.831,38.48627937]
[1680624326667,23.91,20.839,20.832,0.0675562]
[1680624326862,10.0,20.838,20.832,0.0675562]
[1680624327058,10.0,20.838,20.831,14.53627937]
[1680624327365,23.91,20.839,20.828,23.93171975]
[1680624327866,23.91,20.836,20.828,0.06171975]
[1680624329766,23.91,20.836,20.828,14.31116729]
[1680624329964,23.91,20.836,20.828,0.06171975]
[1680624331866,43.7081,20.835,20.828,0.06171975]
[1680624332768,43.7081,20.835,20.829,23.95]
[1680624336370,43.7081,20.835,20.828,0.06171975]
[1680624337575,23.91,20.834,20.828,0.06171975]
[1680624337870,23.91,20.834,20.825,14.71207975]
[1680624338069,23.91,20.834,20.824,0.06866725]
[1680624338369,23.91,20.834,20.824,8.88416117]
[1680624338970,23.91,20.834,20.824,0.06866725]
[1680624342772,23.95,20.832,20.824,0.06866725]
[1680624342972,10.0,20.831,20.824,0.06866725]
[1680624343174,23.95,20.832,20.824,0.06866725]
[1680624344267,23.78,20.829,20.824,0.06866725]
[1680624344468,23.78,20.829,20.822,14.23157313]
[1680624344666,23.78,20.829,20.819,0.06717716]
[1680624345072,23.91,20.826,20.819,0.06717716]
[1680624347473,23.91,20.829,20.819,10.06717716]
[1680624347666,23.91,20.829,20.819,0.06717716]
[1680624348569,23.84732426,20.833,20.822,23.95]
[1680624348877,0.06732426,20.833,20.825,23.87]
[1680624354475,23.91,20.832,20.82,23.78]
[1680624362186,23.95,20.829,20.819,0.06717716]
[1680624369085,0.06732426,20.833,20.804,321.30698397]
[1680624369292,23.95,20.82,20.809,23.95]
[1680624369490,23.95,20.823,20.811,23.95]
[1680624369694,10.0,20.822,20.811,23.95]
[1680624369890,23.95,20.823,20.811,23.95]
[1680624370592,0.06101152,20.824,20.815,23.95]
[1680624370792,0.06101152,20.824,20.816,10.0]
[1680624371193,0.06101152,20.824,20.815,23.95]
[1680624372092,0.06101152,20.824,20.817,23.95]
[1680624372393,0.06101152,20.824,20.818,10.0]
[1680624372589,24.01239499,20.828,20.818,10.0]
[1680624372894,24.01239499,20.828,20.817,23.95]
[1680624373895,23.95,20.825,20.816,0.06504111]
[1680624378693,23.78,20.823,20.816,0.06504111]
[1680624379600,23.95,20.82,20.816,0.06504111]
[1680624379794,23.95,20.82,20.811,0.06056853]
[1680624380099,23.78,20.82,20.811,0.06056853]
[1680624380697,46.0043,20.819,20.811,0.06056853]
[1680624389301,23.78,20.818,20.811,0.06056853]
[1680624390100,10.0,20.817,20.811,0.06056853]
[1680624390405,10.0,20.817,20.807,24.01662978]
[1680624390700,23.78,20.818,20.807,24.01662978]
[1680624392001,23.78,20.816,20.807,0.06662978]
[1680624392602,23.78,20.812,20.807,0.06662978]
[1680624392801,23.78,20.812,20.802,0.06660146]
[1680624393301,45.0961,20.811,20.802,0.06660146]
[1680624414116,45.0961,20.811,20.804,23.95]
[1680624422121,45.0961,20.811,20.806,23.95]
[1680624422518,45.0961,20.811,20.807,10.0]
[1680624423021,45.0961,20.811,20.806,23.95]
[1680624424320,45.0961,20.811,20.803,23.95]
[1680624431022,23.91,20.81,20.802,0.06660146]
[1680624431724,45.0961,20.811,20.803,23.87]
[1680624431924,45.0961,20.811,20.804,10.0]
[1680624432325,45.0961,20.811,20.803,23.87]
[1680624444036,23.95,20.81,20.802,0.06660146]
[1680624446437,45.0961,20.811,20.802,24.01660146]
[1680624460946,45.0961,20.811,20.804,23.95]
[1680624461154,45.0961,20.811,20.805,10.0]
[1680624462046,45.0961,20.811,20.804,23.95]
[1680624466855,0.06750638,20.814,20.804,23.95]
[1680624467054,0.06750638,20.814,20.807,23.87]
[1680624467256,23.95,20.818,20.808,10.0]
[1680624467757,23.95,20.822,20.81,23.87]
[1680624469363,23.95,20.815,20.809,0.06957156]
[1680624469553,23.95,20.811,20.805,0.0710099]
[1680624469854,23.95,20.811,20.801,0.06148558]
[1680624471058,44.7936,20.814,20.806,23.95]
[1680624472355,44.7936,20.814,20.809,23.95]
[1680624473765,0.06407372,20.815,20.813,23.95]
[1680624473959,44.6717,20.82,20.813,23.95]
[1680624475860,44.6717,20.82,20.816,23.87]
[1680624476163,44.6717,20.82,20.817,10.0]
[1680624476363,0.06181731,20.824,20.817,10.0]
[1680624476664,0.06181731,20.824,20.819,23.95]
[1680624476864,123.95,20.83,20.819,23.95]
[1680624476865,0.06916547,20.829,20.819,23.95]
[1680624487272,0.06916547,20.829,20.822,23.95]
[1680624487472,0.06916547,20.829,20.826,23.95]
[1680624487673,0.06284785,20.835,20.826,23.95]
[1680624490473,23.91,20.833,20.823,0.0621828]
[1680624491174,0.06284785,20.835,20.823,0.0621828]
[1680624491175,23.95,20.829,20.823,0.0621828]
[1680624491473,23.95,20.829,20.819,24.01348265]
[1680624501979,23.95,20.832,20.822,23.95]
[1680624502280,23.95,20.832,20.823,10.0]
[1680624502683,23.95,20.832,20.822,23.95]
[1680624504181,23.95,20.832,20.823,10.0]
[1680624505481,0.06284785,20.835,20.825,23.95]
[1680624505684,0.06284785,20.835,20.826,10.0]
[1680624505982,0.06284785,20.835,20.829,23.95]
[1680624506183,47.7255,20.838,20.829,23.95]
[1680624506379,47.7255,20.838,20.83,10.0]
[1680624506881,47.7255,20.838,20.829,23.95]
[1680624518090,0.06626606,20.839,20.833,23.95]
[1680624518287,23.95,20.844,20.833,23.95]
[1680624518288,0.07060679,20.843,20.833,23.95]
[1680624518491,0.07060679,20.843,20.829,0.06284231]
[1680624518492,0.07060679,20.843,20.836,23.95]
[1680624521089,0.07060679,20.843,20.829,24.01284231]
[1680624521295,23.91,20.838,20.829,0.06284231]
[1680624521591,23.78,20.835,20.829,0.06284231]
[1680624521792,23.78,20.835,20.825,0.06578175]
[1680624521991,23.78,20.835,20.823,24.01226516]
[1680624522389,23.95,20.832,20.823,0.06226516]
[1680624522986,23.91,20.829,20.823,0.06226516]
[1680624523189,23.95,20.826,20.823,0.06226516]
[1680624523691,23.95,20.826,20.817,0.07140101]
[1680624524491,43.7313,20.825,20.817,0.07140101]
[1680624535402,43.7313,20.825,20.819,23.95]
[1680624535605,23.84769788,20.829,20.819,23.95]
[1680624541707,23.78,20.826,20.817,0.07140101]
[1680624545209,0.06769788,20.829,20.819,23.87]
[1680624548515,23.91,20.828,20.817,24.02140101]
[1680624548908,10.0,20.827,20.817,24.02140101]
[1680624549108,23.91,20.828,20.817,24.02140101]
[1680624550213,23.91,20.824,20.817,0.07140101]
[1680624553711,23.91,20.819,20.805,14.26688715]
[1680624553910,23.95,20.813,20.795,44.6254]
[1680624554215,23.95,20.813,20.801,23.95]
[1680624554410,10.0,20.812,20.801,23.95]
[1680624554615,23.78,20.81,20.799,23.9352553]
[1680624555016,10.0,20.809,20.799,23.9352553]
[1680624555311,10.0,20.809,20.781,48.17]
[1680624555312,23.95,20.803,20.792,23.95]
[1680624557121,35.90362764,20.805,20.791,35.64]
[1680624557322,35.90362764,20.805,20.792,10.0]
[1680624557620,35.90362764,20.805,20.791,35.64]
[1680624572027,35.92,20.802,20.79,0.07100497]
[1680624575022,0.06362764,20.805,20.792,35.59]
[1680624575232,0.06362764,20.805,20.792,180.09]
[1680624575631,0.06362764,20.805,20.792,35.59]
[1680624584334,0.06362764,20.805,20.792,35.59]
[1680624598940,0.06362764,20.805,20.792,180.09]
[1680624600643,35.59,20.811,20.792,180.09]
[1680624600841,135.84,20.82,20.804,180.42]
[1680624601046,100.0,20.82,20.808,35.68]
[1680624601347,50.26679699,20.823,20.808,35.68]
[1680624601548,50.26679699,20.823,20.809,10.0]
[1680624601745,50.33265942,20.823,20.809,0.06054059]
[1680624602047,100.0,20.82,20.809,0.06054059]
[1680624602342,0.06586243,20.823,20.814,35.92]
[1680624602536,35.84,20.831,20.817,35.68]
[1680624602743,35.92,20.834,20.82,35.59]
[1680624603143,44.8357,20.836,20.823,35.92]
[1680624603340,149.96617238,20.84,20.826,35.68]
[1680624603645,1.76458276,20.839,20.827,10.0]
[1680624604047,150.03229422,20.84,20.826,35.7403989]
[1680624604344,135.90612184,20.84,20.826,35.7403989]
[1680624605146,135.90612184,20.84,20.826,180.2403989]
[1680624605348,100.06612184,20.84,20.83,35.92]
[1680624605541,100.06612184,20.84,20.831,10.0]
[1680624606343,0.06612184,20.84,20.831,10.0]
[1680624607447,0.06612184,20.84,20.83,35.92]
[1680624608142,0.06612184,20.84,20.83,180.42]
[1680624608347,0.06612184,20.84,20.831,10.0]
[1680624610648,0.06612184,20.84,20.834,35.68]
[1680624610848,1.82450594,20.844,20.835,10.0]
[1680624611248,1.82450594,20.844,20.834,35.68]
[1680624611851,1.76421945,20.843,20.834,35.68]
[1680624612051,0.06028649,20.844,20.834,35.68]
[1680624612751,100.0,20.84,20.832,35.98746805]
[1680624613851,0.06028649,20.844,20.832,35.98746805]
[1680624614051,1.82450618,20.844,20.832,35.98746805]
[1680624615154,100.0,20.84,20.832,35.98746805]
[1680624615358,100.0,20.84,20.832,0.06746805]
[1680624616253,35.84,20.843,20.832,0.06746805]
[1680624616557,0.06028649,20.844,20.835,35.92]
[1680624623566,0.06028649,20.844,20.838,35.92]
[1680624623866,35.84,20.852,20.838,35.92]
[1680624623867,0.07101776,20.848,20.838,35.92]
[1680624624165,0.0670346,20.85,20.838,35.92]
[1680624624664,0.0670346,20.85,20.839,47.5561]
[1680624625065,0.0670346,20.85,20.84,10.0]
[1680624625870,0.0670346,20.85,20.839,47.5561]
[1680624628470,0.0670346,20.85,20.82,123.83917699]
[1680624628471,35.72,20.84,20.82,144.5]
[1680624628668,35.72,20.836,20.81,36.12]
[1680624628866,35.72,20.836,20.822,35.68]
[1680624629461,35.78482145,20.836,20.822,35.7450892]
[1680624631572,0.06482145,20.836,20.824,35.59]
[1680624632971,35.98482145,20.836,20.823,43.7567]
[1680624637679,35.84,20.831,20.823,43.7567]
[1680624637880,35.84,20.831,20.822,0.0650892]
[1680624638284,35.92,20.829,20.822,0.0650892]
[1680624641479,35.98482145,20.836,20.822,0.0650892]
[1680624641480,35.92,20.825,20.822,0.0650892]
[1680624641685,10.0,20.824,20.816,0.07098545]
[1680624641986,35.92,20.825,20.813,10.0600806]
[1680624642681,35.92,20.825,20.813,0.0600806]
[1680624648890,35.92,20.822,20.813,0.0600806]
[1680624649100,10.0,20.821,20.813,0.0600806]
[1680624649991,35.92,20.822,20.813,0.0600806]
[1680624651989,0.02214589,20.813,20.802,82.3773]
[1680624652190,0.02214589,20.813,20.802,97.10940159]
[1680624653494,0.02214589,20.813,20.802,82.3773]
[1680624654598,35.94214589,20.813,20.8,0.06734199]
[1680624654799,35.92,20.81,20.8,0.06734199]
[1680624654993,10.0,20.809,20.8,0.06734199]
[1680624655191,35.92,20.81,20.8,0.06734199]
[1680624657297,35.92,20.806,20.8,0.06734199]
[1680624657492,35.92,20.806,20.796,0.06593358]
[1680624657693,10.0,20.805,20.794,0.06356721]
[1680624657995,35.92,20.806,20.794,0.06356721]
[1680624661895,35.92,20.807,20.794,0.06356721]
[1680624665898,10.0,20.806,20.794,0.06356721]
[1680624666103,35.92,20.807,20.794,0.06356721]
[1680624672205,23.82,20.805,20.794,24.00356721]
[1680624682110,0.06896611,20.81,20.798,23.82]
[1680624682314,23.94,20.809,20.798,23.82]
[1680624684614,23.94,20.806,20.794,24.00356721]
[1680624698521,23.94,20.802,20.794,0.06356721]
[1680624699525,46.1932,20.801,20.794,0.06356721]
[1680624712036,23.94,20.8,20.794,0.06356721]
[1680624712237,23.94,20.8,20.79,23.88422888]
[1680624713739,23.94,20.8,20.79,38.42176211]
[1680624716440,46.1932,20.801,20.794,10.0]
[1680624717140,46.1932,20.801,20.793,23.82]
[1680624721145,23.94,20.804,20.793,23.82]
[1680624721445,0.06628365,20.805,20.796,23.82]
[1680624732253,0.06628365,20.805,20.799,23.82]
[1680624732554,0.06273604,20.809,20.799,23.82]
[1680624741055,23.94,20.807,20.796,68.9175]
[1680624771789,0.06273604,20.809,20.798,23.82]
[1680624774892,0.06273604,20.809,20.804,23.86]
[1680624775091,100.0,20.812,20.804,23.86]
[1680624776193,100.0,20.812,20.802,23.94]
[1680624779196,23.94,20.811,20.799,23.92945824]
[1680624786696,123.94,20.813,20.802,23.94]
[1680624787599,23.94,20.813,20.802,23.94]
[1680624787794,23.94,20.813,20.799,0.06945824]
[1680624787795,0.06821586,20.814,20.799,0.06945824]
[1680624788002,0.06821586,20.814,20.809,23.82]
[1680624788197,14.56562903,20.814,20.809,23.82]
[1680624788501,10.06629422,20.819,20.809,23.82]
[1680624788702,0.06629422,20.819,20.809,23.82]
[1680624788902,44.82526097,20.819,20.809,23.82]
[1680624789201,0.06629422,20.819,20.809,23.82]
[1680624789402,44.82507677,20.819,20.809,23.82]
[1680624789602,0.06629422,20.819,20.809,23.82]
[1680624790603,44.82501976,20.819,20.809,23.82]
[1680624791203,23.94,20.817,20.805,23.94]
[1680624805916,47.7061,20.818,20.81,23.94]
[1680624806211,0.06629422,20.819,20.81,23.94]
[1680624822130,0.06629422,20.819,20.812,23.86]
[1680624822331,0.06629422,20.819,20.813,10.0]
[1680624822525,123.94,20.823,20.813,10.0]
[1680624822526,124.00115082,20.823,20.813,10.0]
[1680624822729,124.00115082,20.823,20.812,23.86]
[1680624825033,0.06115082,20.823,20.815,23.86]
[1680624825237,0.06115082,20.823,20.816,10.0]
[1680624825736,0.06115082,20.823,20.819,23.86]
[1680624826037,46.6837,20.827,20.82,10.0]
[1680624826436,46.6837,20.827,20.819,23.86]
[1680624827740,0.06939251,20.828,20.819,23.86]
[1680624827930,1.83501034,20.828,20.819,23.86]
[1680624829338,44.73815254,20.827,20.819,23.86]
[1680624829734,0.06939251,20.828,20.819,23.86]
[1680624829938,1.83501906,20.828,20.819,23.86]
[1680624832139,25.65501906,20.828,20.817,23.86]
[1680624832340,23.88939251,20.828,20.817,23.86]
[1680624833441,44.73950151,20.827,20.817,23.86]
[1680624833836,23.88939251,20.828,20.817,23.86]
[1680624834041,68.12549251,20.828,20.817,23.86]
[1680624834642,44.7396987,20.827,20.817,23.86]
[1680624843952,23.82,20.826,20.816,0.06717199]
[1680624844651,23.82,20.826,20.816,14.26624962]
[1680624844851,23.82,20.826,20.816,0.06717199]
[1680624852060,68.24549251,20.828,20.818,23.82]
[1680624852262,44.73757115,20.827,20.818,23.82]
[1680624858662,23.94,20.823,20.816,0.06717199]
[1680624859160,10.0,20.826,20.816,0.06717199]
[1680624859161,23.82,20.82,20.816,0.06717199]
[1680624859362,23.82,20.82,20.811,0.06190511]
[1680624860568,44.7174,20.819,20.811,0.06190511]
[1680624877878,44.7174,20.819,20.813,23.82]
[1680624888186,44.7174,20.819,20.811,0.06190511]
[1680624888584,23.94,20.817,20.811,0.06190511]
[1680624888784,10.0,20.816,20.807,0.06472538]
[1680624889080,23.94,20.817,20.807,0.06472538]
[1680624890184,10.0,20.816,20.807,0.06472538]
[1680624891291,23.94,20.817,20.807,0.06472538]
[1680624891985,68.72754692,20.819,20.807,0.06472538]
[1680624900496,23.94,20.816,20.807,0.06472538]
[1680624900899,10.0,20.815,20.807,0.06472538]
[1680624901395,23.94,20.813,20.807,0.06472538]
[1680624901593,23.94,20.813,20.803,0.06147237]
[1680624902299,45.4516,20.812,20.803,0.06147237]
[1680624902795,45.4516,20.812,20.805,23.82]
[1680624902998,45.4516,20.812,20.808,23.94]
[1680624903200,45.4516,20.812,20.811,23.94]
[1680624903396,0.06313199,20.815,20.811,23.94]
[1680624903595,0.06815583,20.82,20.811,23.94]
[1680624903897,10.0,20.821,20.811,23.94]
[1680624904697,23.94,20.82,20.809,23.94]
[1680624912098,68.2006,20.822,20.811,23.86]
[1680624918702,44.2606,20.822,20.815,23.86]
[1680624922114,44.2606,20.822,20.816,23.86]
[1680624922416,44.2606,20.822,20.817,10.0]
[1680624922814,44.2606,20.822,20.816,23.86]
[1680624928220,44.2606,20.822,20.819,23.94]
[1680624929416,0.06613151,20.828,20.819,23.94]